[Event "Titled Tuesday Blitz June 27 Early 2023"]
[White "Pein, Jonathan"]
[Black "Flis, Pawel"]
[WhiteFideId "417092"]
[BlackFideId "1112864"]
[WhiteElo "2399"]
[BlackElo "2114"]
[Result "1-0"]
[Round "9"]
[TimeControl "180+2"]
[Date "2023.06.27"]
[WhiteClock "0:01:34"]
[BlackClock "0:00:04"]
[Board "141"]

1. Nf3 {[%clk 0:02:59]}  Nf6 {[%clk 0:02:58]} 2. e3 {[%clk 0:02:59]}  g6 {[%clk 0:02:52]} 3. c4 {[%clk 0:02:59]}  Bg7 {[%clk 0:02:52]} 4. b3 {[%clk 0:03:00]}  O-O {[%clk 0:02:52]} 5. Bb2 {[%clk 0:03:01]}  d5 {[%clk 0:02:50]} 6. cxd5 {[%clk 0:02:57]}  Nxd5 {[%clk 0:02:49]} 7. Bxg7 {[%clk 0:02:58]}  Kxg7 {[%clk 0:02:50]} 8. Be2 {[%clk 0:02:59]}  c5 {[%clk 0:02:44]} 9. O-O {[%clk 0:02:59]}  Nc6 {[%clk 0:02:42]} 10. d4 {[%clk 0:02:59]}  cxd4 {[%clk 0:02:41]} 11. Nxd4 {[%clk 0:03:00]}  Nf6 {[%clk 0:02:31]} 12. Nxc6 {[%clk 0:03:00]}  bxc6 {[%clk 0:02:30]} 13. Nc3 {[%clk 0:02:58]}  Bf5 {[%clk 0:02:25]} 14. Rc1 {[%clk 0:02:58]}  Qa5 {[%clk 0:02:24]} 15. Na4 {[%clk 0:02:57]}  Rfd8 {[%clk 0:02:12]} 16. Qe1 {[%clk 0:02:58]}  Qxe1 {[%clk 0:01:57]} 17. Rfxe1 {[%clk 0:02:59]}  Rd2 {[%clk 0:01:55]} 18. a3 {[%clk 0:02:59]}  Bd7 {[%clk 0:01:47]} 19. Red1 {[%clk 0:02:56]}  Rxd1+ {[%clk 0:01:44]} 20. Rxd1 {[%clk 0:02:56]}  Be8 {[%clk 0:01:44]} 21. Nc5 {[%clk 0:02:55]}  Nd5 {[%clk 0:01:40]} 22. Bc4 {[%clk 0:02:51]}  e6 {[%clk 0:01:37]} 23. e4 {[%clk 0:02:49]}  Nf6 {[%clk 0:01:32]} 24. f3 {[%clk 0:02:50]}  Kf8 {[%clk 0:01:29]} 25. Kf2 {[%clk 0:02:46]}  Ke7 {[%clk 0:01:28]} 26. g4 {[%clk 0:02:47]}  Rd8 {[%clk 0:01:27]} 27. Rxd8 {[%clk 0:02:44]}  Kxd8 {[%clk 0:01:28]} 28. h4 {[%clk 0:02:41]}  h5 {[%clk 0:01:26]} 29. g5 {[%clk 0:02:41]}  Ng8 {[%clk 0:01:25]} 30. Ke3 {[%clk 0:02:42]}  Ne7 {[%clk 0:01:25]} 31. Kd4 {[%clk 0:02:42]}  Nc8 {[%clk 0:01:09]} 32. Ke5 {[%clk 0:02:41]}  Ke7 {[%clk 0:01:09]} 33. Ba6 {[%clk 0:02:29]}  Nd6 {[%clk 0:00:58]} 34. a4 {[%clk 0:02:28]}  Bd7 {[%clk 0:00:54]} 35. b4 {[%clk 0:02:16]}  Bc8 {[%clk 0:00:54]} 36. Bd3 {[%clk 0:02:12]}  Bd7 {[%clk 0:00:49]} 37. f4 {[%clk 0:02:10]}  Nc8 {[%clk 0:00:48]} 38. Nb7 {[%clk 0:02:01]}  Nb6 {[%clk 0:00:45]} 39. Nc5 {[%clk 0:01:55]}  Nc8 {[%clk 0:00:41]} 40. Nb7 {[%clk 0:01:49]}  Nb6 {[%clk 0:00:40]} 41. Bc2 {[%clk 0:01:50]}  Nc4+ {[%clk 0:00:40]} 42. Kd4 {[%clk 0:01:50]}  Nd2 {[%clk 0:00:35]} 43. Bd1 {[%clk 0:01:45]}  Nf1 {[%clk 0:00:31]} 44. Nc5 {[%clk 0:01:41]}  Nh2 {[%clk 0:00:27]} 45. Ke3 {[%clk 0:01:39]}  Ng4+ {[%clk 0:00:26]} 46. Bxg4 {[%clk 0:01:40]}  hxg4 {[%clk 0:00:26]} 47. e5 {[%clk 0:01:40]}  Bc8 {[%clk 0:00:21]} 48. Kf2 {[%clk 0:01:36]}  Kd8 {[%clk 0:00:21]} 49. a5 {[%clk 0:01:33]}  Kc7 {[%clk 0:00:20]} 50. Kg3 {[%clk 0:01:33]}  Kd8 {[%clk 0:00:15]} 51. Kxg4 {[%clk 0:01:33]}  Ke7 {[%clk 0:00:15]} 52. h5 {[%clk 0:01:32]}  gxh5+ {[%clk 0:00:15]} 53. Kxh5 {[%clk 0:01:33]}  Kf8 {[%clk 0:00:15]} 54. Kh6 {[%clk 0:01:34]}  Kg8 {[%clk 0:00:13]} 55. g6 {[%clk 0:01:32]}  fxg6 {[%clk 0:00:14]} 56. Kxg6 {[%clk 0:01:33]}  Kf8 {[%clk 0:00:14]} 57. Kf6 {[%clk 0:01:33]}  Ke8 {[%clk 0:00:14]} 58. Nxe6 {[%clk 0:01:34]}  Kd7 {[%clk 0:00:13]} 59. Nc5+ {[%clk 0:01:34]}  Ke8 {[%clk 0:00:13]} 60. f5 {[%clk 0:01:34]}  a6 {[%clk 0:00:12]} 61. e6 {[%clk 0:01:34]}  Kf8 {[%clk 0:00:11]} 62. Ke5 {[%clk 0:01:34]}  Ke8 {[%clk 0:00:11]} 63. f6 {[%clk 0:01:34]}  Bxe6 {[%clk 0:00:10]} 64. Kxe6 {[%clk 0:01:34]}  Kf8 {[%clk 0:00:09]} 65. f7 {[%clk 0:01:34]}  Kg7 {[%clk 0:00:04]} 66. Ne4 {[%clk 0:01:34]} 1-0


[Site "https://www.chess.com"]

[Event "Titled Tuesday Blitz June 27 Early 2023"]
[White "Torres Dominguez, David"]
[Black "Tosic, Srecko"]
[WhiteFideId "2220857"]
[BlackFideId "924563"]
[WhiteElo "2098"]
[BlackElo "2311"]
[Result "0-1"]
[Round "9"]
[TimeControl "180+2"]
[Date "2023.06.27"]
[WhiteClock "0:00:00"]
[BlackClock "0:00:32"]
[Board "142"]

1. e4 {[%clk 0:02:18]}  e6 {[%clk 0:03:00]} 2. d4 {[%clk 0:02:17]}  d5 {[%clk 0:03:00]} 3. exd5 {[%clk 0:02:18]}  exd5 {[%clk 0:03:01]} 4. Bd3 {[%clk 0:02:19]}  c6 {[%clk 0:03:01]} 5. Nf3 {[%clk 0:02:19]}  Bd6 {[%clk 0:03:02]} 6. O-O {[%clk 0:02:20]}  Ne7 {[%clk 0:03:03]} 7. Ne5 {[%clk 0:02:20]}  Bf5 {[%clk 0:02:59]} 8. Re1 {[%clk 0:02:10]}  O-O {[%clk 0:02:54]} 9. Bf1 {[%clk 0:02:10]}  Nd7 {[%clk 0:02:49]} 10. Nc3 {[%clk 0:02:09]}  f6 {[%clk 0:02:42]} 11. Nd3 {[%clk 0:02:07]}  Qc7 {[%clk 0:02:36]} 12. g3 {[%clk 0:02:05]}  Rae8 {[%clk 0:02:34]} 13. Bf4 {[%clk 0:02:05]}  Ng6 {[%clk 0:02:25]} 14. Bxd6 {[%clk 0:02:04]}  Qxd6 {[%clk 0:02:26]} 15. Qd2 {[%clk 0:02:00]}  Nb6 {[%clk 0:02:25]} 16. b3 {[%clk 0:01:58]}  Nc8 {[%clk 0:02:12]} 17. Rxe8 {[%clk 0:01:58]}  Rxe8 {[%clk 0:02:12]} 18. Re1 {[%clk 0:01:59]}  Rxe1 {[%clk 0:02:03]} 19. Nxe1 {[%clk 0:02:00]}  Kf7 {[%clk 0:02:03]} 20. f3 {[%clk 0:01:58]}  Qb4 {[%clk 0:01:53]} 21. a4 {[%clk 0:01:49]}  Nd6 {[%clk 0:01:48]} 22. Ne4 {[%clk 0:01:45]}  Qxd2 {[%clk 0:01:43]} 23. Nxd2 {[%clk 0:01:46]}  b6 {[%clk 0:01:36]} 24. Kf2 {[%clk 0:01:45]}  c5 {[%clk 0:01:36]} 25. c3 {[%clk 0:01:43]}  Ne7 {[%clk 0:01:32]} 26. g4 {[%clk 0:01:38]}  Bg6 {[%clk 0:01:29]} 27. Ng2 {[%clk 0:01:35]}  cxd4 {[%clk 0:01:28]} 28. cxd4 {[%clk 0:01:36]}  Nc6 {[%clk 0:01:28]} 29. Ke3 {[%clk 0:01:36]}  f5 {[%clk 0:01:27]} 30. h3 {[%clk 0:01:36]}  fxg4 {[%clk 0:01:20]} 31. hxg4 {[%clk 0:01:36]}  Bc2 {[%clk 0:01:18]} 32. Nf4 {[%clk 0:01:34]}  Nb4 {[%clk 0:01:17]} 33. Be2 {[%clk 0:01:06]}  g5 {[%clk 0:01:16]} 34. Nd3 {[%clk 0:01:00]}  a5 {[%clk 0:00:58]} 35. Ne5+ {[%clk 0:00:58]}  Ke6 {[%clk 0:00:55]} 36. Nd3 {[%clk 0:00:45]}  h5 {[%clk 0:00:53]} 37. gxh5 {[%clk 0:00:45]}  Nf5+ {[%clk 0:00:54]} 38. Kf2 {[%clk 0:00:41]}  Nxd4 {[%clk 0:00:54]} 39. Nxb4 {[%clk 0:00:36]}  axb4 {[%clk 0:00:55]} 40. h6 {[%clk 0:00:34]}  Kf6 {[%clk 0:00:52]} 41. h7 {[%clk 0:00:31]}  Bxh7 {[%clk 0:00:50]} 42. Ke3 {[%clk 0:00:30]}  Ke5 {[%clk 0:00:49]} 43. Bd1 {[%clk 0:00:26]}  Bg6 {[%clk 0:00:45]} 44. Nf1 {[%clk 0:00:25]}  Bc2 {[%clk 0:00:41]} 45. Bxc2 {[%clk 0:00:24]}  Nxc2+ {[%clk 0:00:42]} 46. Kd3 {[%clk 0:00:23]}  Nd4 {[%clk 0:00:42]} 47. Nd2 {[%clk 0:00:24]}  Ne6 {[%clk 0:00:36]} 48. Ke3 {[%clk 0:00:21]}  Nc5 {[%clk 0:00:34]} 49. Kf2 {[%clk 0:00:13]}  Kd4 {[%clk 0:00:34]} 50. Ke2 {[%clk 0:00:13]}  Kc3 {[%clk 0:00:34]} 51. Ke3 {[%clk 0:00:13]}  Nxb3 {[%clk 0:00:33]} 52. Nf1 {[%clk 0:00:11]}  d4+ {[%clk 0:00:31]} 53. Ke4 {[%clk 0:00:11]}  Nc5+ {[%clk 0:00:31]} 54. Kf5 {[%clk 0:00:00]}  b3 {[%clk 0:00:32]} 0-1


[Site "https://www.chess.com"]

[Event "Titled Tuesday Blitz June 27 Early 2023"]
[White "Castillo Pena, Patricia Evarista"]
[Black "Wesolowska, Hanna"]
[WhiteFideId "6412106"]
[BlackFideId "1104683"]
[WhiteElo "1898"]
[BlackElo "2143"]
[Result "1/2-1/2"]
[Round "9"]
[TimeControl "180+2"]
[Date "2023.06.27"]
[WhiteClock "0:00:17"]
[BlackClock "0:00:17"]
[Board "144"]

1. d4 {[%clk 0:02:57]}  Nf6 {[%clk 0:02:57]} 2. Nf3 {[%clk 0:02:52]}  c5 {[%clk 0:02:53]} 3. e3 {[%clk 0:02:49]}  g6 {[%clk 0:02:41]} 4. b3 {[%clk 0:02:48]}  Bg7 {[%clk 0:02:41]} 5. Bb2 {[%clk 0:02:48]}  cxd4 {[%clk 0:02:40]} 6. exd4 {[%clk 0:02:48]}  O-O {[%clk 0:02:40]} 7. Be2 {[%clk 0:02:47]}  d5 {[%clk 0:02:40]} 8. O-O {[%clk 0:02:47]}  Nc6 {[%clk 0:02:41]} 9. a3 {[%clk 0:02:47]}  Bf5 {[%clk 0:02:41]} 10. Nbd2 {[%clk 0:02:41]}  Ne4 {[%clk 0:02:37]} 11. Ne5 {[%clk 0:02:16]}  Nxe5 {[%clk 0:02:35]} 12. dxe5 {[%clk 0:02:15]}  Nxd2 {[%clk 0:02:34]} 13. Qxd2 {[%clk 0:02:15]}  Qc7 {[%clk 0:02:34]} 14. Rac1 {[%clk 0:01:54]}  Bxe5 {[%clk 0:02:23]} 15. Bxe5 {[%clk 0:01:53]}  Qxe5 {[%clk 0:02:23]} 16. Bf3 {[%clk 0:01:53]}  Rfd8 {[%clk 0:02:14]} 17. Rfe1 {[%clk 0:01:53]}  Be4 {[%clk 0:01:43]} 18. Bxe4 {[%clk 0:01:41]}  dxe4 {[%clk 0:01:43]} 19. Qb4 {[%clk 0:01:40]}  Rac8 {[%clk 0:00:52]} 20. Qxb7 {[%clk 0:01:30]}  f5 {[%clk 0:00:48]} 21. Qxa7 {[%clk 0:01:22]}  Rd2 {[%clk 0:00:43]} 22. c4 {[%clk 0:00:57]}  Rcd8 {[%clk 0:00:34]} 23. c5 {[%clk 0:00:53]}  Qd4 {[%clk 0:00:27]} 24. Rf1 {[%clk 0:00:47]}  e3 {[%clk 0:00:20]} 25. fxe3 {[%clk 0:00:43]}  Qxe3+ {[%clk 0:00:20]} 26. Kh1 {[%clk 0:00:43]}  Qe2 {[%clk 0:00:20]} 27. Rg1 {[%clk 0:00:40]}  Rd1 {[%clk 0:00:16]} 28. c6 {[%clk 0:00:18]}  Rxc1 {[%clk 0:00:16]} 29. Rxc1 {[%clk 0:00:17]}  Rd1+ {[%clk 0:00:16]} 30. Rxd1 {[%clk 0:00:18]}  Qxd1+ {[%clk 0:00:17]} 31. Qg1 {[%clk 0:00:18]}  Qxb3 {[%clk 0:00:17]} 32. h3 {[%clk 0:00:17]}  Qc4 {[%clk 0:00:18]} 33. Qb6 {[%clk 0:00:15]}  Qc1+ {[%clk 0:00:17]} 34. Kh2 {[%clk 0:00:16]}  Qf4+ {[%clk 0:00:17]} 35. Kh1 {[%clk 0:00:16]}  Qc1+ {[%clk 0:00:17]} 36. Kh2 {[%clk 0:00:17]}  Qf4+ {[%clk 0:00:16]} 37. Kh1 {[%clk 0:00:17]}  Qc1+ {[%clk 0:00:17]} 1/2-1/2


[Site "https://www.chess.com"]

[Event "Titled Tuesday Blitz June 27 Early 2023"]
[White "GAO"]
[Black "Mangialardo, Tiago Carvalho"]
[BlackFideId "2130718"]
[WhiteElo "2365"]
[BlackElo "2135"]
[Result "1-0"]
[Round "9"]
[TimeControl "180+2"]
[Date "2023.06.27"]
[WhiteClock "0:00:29"]
[BlackClock "0:00:00"]
[Board "145"]

1. b3 {[%clk 0:02:58]}  Nf6 {[%clk 0:02:20]} 2. Bb2 {[%clk 0:02:59]}  c5 {[%clk 0:02:17]} 3. Nf3 {[%clk 0:02:59]}  g6 {[%clk 0:02:15]} 4. Bxf6 {[%clk 0:02:58]}  exf6 {[%clk 0:02:15]} 5. e3 {[%clk 0:02:58]}  Bg7 {[%clk 0:02:01]} 6. c3 {[%clk 0:02:55]}  O-O {[%clk 0:01:46]} 7. g3 {[%clk 0:02:55]}  Nc6 {[%clk 0:01:45]} 8. Bg2 {[%clk 0:02:55]}  d5 {[%clk 0:01:45]} 9. d4 {[%clk 0:02:56]}  Bg4 {[%clk 0:01:30]} 10. O-O {[%clk 0:02:55]}  Qd7 {[%clk 0:01:28]} 11. Re1 {[%clk 0:02:54]}  Rac8 {[%clk 0:01:25]} 12. Nbd2 {[%clk 0:02:54]}  cxd4 {[%clk 0:01:24]} 13. cxd4 {[%clk 0:02:50]}  Nb4 {[%clk 0:01:15]} 14. Rc1 {[%clk 0:02:14]}  Rxc1 {[%clk 0:01:11]} 15. Qxc1 {[%clk 0:02:15]}  Nd3 {[%clk 0:01:12]} 16. Qc3 {[%clk 0:01:56]}  Nxe1 {[%clk 0:01:10]} 17. Nxe1 {[%clk 0:01:57]}  Rc8 {[%clk 0:01:09]} 18. Qb2 {[%clk 0:01:56]}  Qc6 {[%clk 0:00:58]} 19. h3 {[%clk 0:01:50]}  Qc1 {[%clk 0:00:54]} 20. Qxc1 {[%clk 0:01:43]}  Rxc1 {[%clk 0:00:54]} 21. Kf1 {[%clk 0:01:43]}  Be6 {[%clk 0:00:52]} 22. Ke2 {[%clk 0:01:39]}  Bf8 {[%clk 0:00:50]} 23. Nd3 {[%clk 0:01:38]}  Rc2 {[%clk 0:00:49]} 24. a4 {[%clk 0:01:35]}  Ba3 {[%clk 0:00:37]} 25. Kd1 {[%clk 0:01:33]}  Rc7 {[%clk 0:00:30]} 26. Nf4 {[%clk 0:01:26]}  Rc1+ {[%clk 0:00:20]} 27. Ke2 {[%clk 0:01:25]}  Rc2 {[%clk 0:00:21]} 28. Kd1 {[%clk 0:01:24]}  Ra2 {[%clk 0:00:15]} 29. Bxd5 {[%clk 0:01:11]}  Bb4 {[%clk 0:00:11]} 30. Ne4 {[%clk 0:01:02]}  f5 {[%clk 0:00:04]} 31. Nxe6 {[%clk 0:00:30]}  fxe4 {[%clk 0:00:02]} 32. Ng5 {[%clk 0:00:29]}  Rxf2 {[%clk 0:00:02]} 33. Nxe4 {[%clk 0:00:29]}  Rg2 {[%clk 0:00:01]} 34. Nf6+ {[%clk 0:00:27]}  Kg7 {[%clk 0:00:01]} 35. Bxg2 {[%clk 0:00:28]}  Kxf6 {[%clk 0:00:00]} 36. Bxb7 {[%clk 0:00:29]} 1-0


[Site "https://www.chess.com"]

[Event "Titled Tuesday Blitz June 27 Early 2023"]
[White "Sanal, Vahap"]
[Black "So, Wesley"]
[WhiteFideId "6300545"]
[BlackFideId "5202213"]
[WhiteElo "2966"]
[BlackElo "3109"]
[Result "1-0"]
[Round "10"]
[TimeControl "180+2"]
[Date "2023.06.27"]
[WhiteClock "0:00:06"]
[BlackClock "0:00:00"]
[Board "2"]

1. e4 {[%clk 0:02:44]}  e5 {[%clk 0:02:59]} 2. Nf3 {[%clk 0:02:42]}  Nc6 {[%clk 0:03:00]} 3. Nc3 {[%clk 0:02:42]}  Nf6 {[%clk 0:02:59]} 4. d4 {[%clk 0:02:42]}  exd4 {[%clk 0:02:58]} 5. Nxd4 {[%clk 0:02:43]}  Bb4 {[%clk 0:02:58]} 6. Nxc6 {[%clk 0:02:43]}  bxc6 {[%clk 0:02:58]} 7. Bd3 {[%clk 0:02:43]}  d5 {[%clk 0:02:59]} 8. exd5 {[%clk 0:02:44]}  O-O {[%clk 0:02:58]} 9. O-O {[%clk 0:02:44]}  cxd5 {[%clk 0:02:58]} 10. h3 {[%clk 0:02:44]}  c6 {[%clk 0:02:53]} 11. Qf3 {[%clk 0:02:44]}  Nd7 {[%clk 0:02:47]} 12. Bf4 {[%clk 0:02:39]}  Re8 {[%clk 0:02:46]} 13. Qg3 {[%clk 0:02:26]}  a5 {[%clk 0:02:25]} 14. Ne2 {[%clk 0:02:17]}  Nc5 {[%clk 0:02:12]} 15. Nd4 {[%clk 0:01:55]}  Qf6 {[%clk 0:02:09]} 16. Nf3 {[%clk 0:01:47]}  Nxd3 {[%clk 0:01:59]} 17. cxd3 {[%clk 0:01:47]}  Ba6 {[%clk 0:01:55]} 18. Rfc1 {[%clk 0:01:41]}  Rac8 {[%clk 0:01:38]} 19. d4 {[%clk 0:01:12]}  Re4 {[%clk 0:01:32]} 20. Be5 {[%clk 0:01:04]}  Qg6 {[%clk 0:01:32]} 21. a3 {[%clk 0:01:03]}  Be7 {[%clk 0:01:22]} 22. Qxg6 {[%clk 0:00:45]}  hxg6 {[%clk 0:01:22]} 23. Rc2 {[%clk 0:00:46]}  a4 {[%clk 0:01:13]} 24. Rac1 {[%clk 0:00:46]}  Bb5 {[%clk 0:01:12]} 25. Nd2 {[%clk 0:00:45]}  Re2 {[%clk 0:01:09]} 26. Nf1 {[%clk 0:00:42]}  f6 {[%clk 0:00:50]} 27. Bg3 {[%clk 0:00:37]}  Rxc2 {[%clk 0:00:39]} 28. Rxc2 {[%clk 0:00:37]}  Kf7 {[%clk 0:00:39]} 29. Ne3 {[%clk 0:00:36]}  Ke6 {[%clk 0:00:40]} 30. f3 {[%clk 0:00:33]}  c5 {[%clk 0:00:40]} 31. Bf2 {[%clk 0:00:29]}  Rc6 {[%clk 0:00:30]} 32. Nd1 {[%clk 0:00:27]}  Bd3 {[%clk 0:00:25]} 33. Rd2 {[%clk 0:00:24]}  c4 {[%clk 0:00:20]} 34. Nc3 {[%clk 0:00:24]}  Ra6 {[%clk 0:00:20]} 35. Be3 {[%clk 0:00:22]}  Bd8 {[%clk 0:00:20]} 36. Rd1 {[%clk 0:00:22]}  Kd6 {[%clk 0:00:14]} 37. Bf4+ {[%clk 0:00:23]}  Kc6 {[%clk 0:00:14]} 38. Re1 {[%clk 0:00:24]}  Bb6 {[%clk 0:00:08]} 39. Re6+ {[%clk 0:00:22]}  Kb7 {[%clk 0:00:08]} 40. Re7+ {[%clk 0:00:22]}  Kc6 {[%clk 0:00:08]} 41. Be3 {[%clk 0:00:20]}  Ba5 {[%clk 0:00:03]} 42. Re6+ {[%clk 0:00:13]}  Kb7 {[%clk 0:00:03]} 43. Rxa6 {[%clk 0:00:12]}  Kxa6 {[%clk 0:00:04]} 44. Nxd5 {[%clk 0:00:13]}  Kb5 {[%clk 0:00:04]} 45. Kf2 {[%clk 0:00:12]}  Kc6 {[%clk 0:00:03]} 46. Nf4 {[%clk 0:00:06]}  Bb1 {[%clk 0:00:03]} 47. Ne2 {[%clk 0:00:06]}  Kd5 {[%clk 0:00:03]} 48. Nf4+ {[%clk 0:00:05]}  Kd6 {[%clk 0:00:03]} 49. h4 {[%clk 0:00:05]}  c3 {[%clk 0:00:03]} 50. bxc3 {[%clk 0:00:06]}  Bxc3 {[%clk 0:00:03]} 51. Ne2 {[%clk 0:00:06]}  Bb2 {[%clk 0:00:03]} 52. Bc1 {[%clk 0:00:07]}  Bxc1 {[%clk 0:00:03]} 53. Nxc1 {[%clk 0:00:08]}  Kd5 {[%clk 0:00:03]} 54. Ke3 {[%clk 0:00:08]}  Kc4 {[%clk 0:00:04]} 55. g4 {[%clk 0:00:06]}  Bc2 {[%clk 0:00:03]} 56. f4 {[%clk 0:00:05]}  Bd1 {[%clk 0:00:03]} 57. g5 {[%clk 0:00:06]}  fxg5 {[%clk 0:00:03]} 58. hxg5 {[%clk 0:00:07]}  Bc2 {[%clk 0:00:02]} 59. Ne2 {[%clk 0:00:05]}  Bf5 {[%clk 0:00:02]} 60. Ng3 {[%clk 0:00:05]}  Bd7 {[%clk 0:00:02]} 61. Ne4 {[%clk 0:00:05]}  Be6 {[%clk 0:00:02]} 62. Nc5 {[%clk 0:00:05]}  Bd5 {[%clk 0:00:01]} 63. Nxa4 {[%clk 0:00:06]}  Bc6 {[%clk 0:00:00]} 64. Nc5 {[%clk 0:00:06]} 1-0


[Site "https://www.chess.com"]

[Event "Titled Tuesday Blitz June 27 Early 2023"]
[White "Ter-Sahakyan, Samvel"]
[Black "Sarana, Alexey"]
[WhiteFideId "13302531"]
[BlackFideId "24133795"]
[WhiteElo "2909"]
[BlackElo "3034"]
[Result "0-1"]
[Round "10"]
[TimeControl "180+2"]
[Date "2023.06.27"]
[WhiteClock "0:00:01"]
[BlackClock "0:00:26"]
[Board "6"]

1. d4 {[%clk 0:03:00]}  Nf6 {[%clk 0:02:59]} 2. c4 {[%clk 0:03:00]}  e6 {[%clk 0:03:00]} 3. Nf3 {[%clk 0:03:00]}  d5 {[%clk 0:03:00]} 4. Nc3 {[%clk 0:03:00]}  c6 {[%clk 0:02:59]} 5. Bg5 {[%clk 0:02:59]}  Nbd7 {[%clk 0:02:58]} 6. e3 {[%clk 0:02:57]}  h6 {[%clk 0:02:58]} 7. Bf4 {[%clk 0:02:55]}  g5 {[%clk 0:02:57]} 8. Bg3 {[%clk 0:02:52]}  Nh5 {[%clk 0:02:57]} 9. Be5 {[%clk 0:02:51]}  Nhf6 {[%clk 0:02:57]} 10. Qc2 {[%clk 0:02:48]}  Nxe5 {[%clk 0:02:56]} 11. Nxe5 {[%clk 0:02:48]}  Bd6 {[%clk 0:02:56]} 12. f4 {[%clk 0:02:09]}  gxf4 {[%clk 0:02:54]} 13. exf4 {[%clk 0:02:10]}  Bxe5 {[%clk 0:02:28]} 14. dxe5 {[%clk 0:02:03]}  Ng4 {[%clk 0:02:28]} 15. Qd2 {[%clk 0:01:19]}  Qb6 {[%clk 0:02:26]} 16. Nd1 {[%clk 0:01:18]}  h5 {[%clk 0:02:07]} 17. Bd3 {[%clk 0:01:07]}  Bd7 {[%clk 0:01:53]} 18. h3 {[%clk 0:01:05]}  Nh6 {[%clk 0:01:53]} 19. Ne3 {[%clk 0:01:06]}  O-O-O {[%clk 0:01:48]} 20. O-O-O {[%clk 0:01:00]}  Kb8 {[%clk 0:01:46]} 21. Kb1 {[%clk 0:00:48]}  Rhg8 {[%clk 0:01:46]} 22. Rhf1 {[%clk 0:00:39]}  Rg3 {[%clk 0:01:45]} 23. Rde1 {[%clk 0:00:33]}  Qd4 {[%clk 0:01:10]} 24. cxd5 {[%clk 0:00:17]}  cxd5 {[%clk 0:01:08]} 25. Qc3 {[%clk 0:00:16]}  Qb6 {[%clk 0:01:01]} 26. Qd2 {[%clk 0:00:15]}  Bc6 {[%clk 0:00:49]} 27. Ka1 {[%clk 0:00:14]}  Qd4 {[%clk 0:00:48]} 28. Qf2 {[%clk 0:00:10]}  h4 {[%clk 0:00:35]} 29. Bb1 {[%clk 0:00:09]}  Bb5 {[%clk 0:00:34]} 30. Rg1 {[%clk 0:00:08]}  Rdg8 {[%clk 0:00:31]} 31. a3 {[%clk 0:00:04]}  a6 {[%clk 0:00:29]} 32. f5 {[%clk 0:00:02]}  exf5 {[%clk 0:00:29]} 33. Qc2 {[%clk 0:00:01]}  Rxe3 {[%clk 0:00:26]} 0-1


[Site "https://www.chess.com"]

[Event "Titled Tuesday Blitz June 27 Early 2023"]
[White "Nguyen, Ngoc Truong Son"]
[Black "Harsh Suresh"]
[WhiteFideId "12401110"]
[BlackFideId "45018464"]
[WhiteElo "2957"]
[BlackElo "2831"]
[Result "1/2-1/2"]
[Round "10"]
[TimeControl "180+2"]
[Date "2023.06.27"]
[WhiteClock "0:00:07"]
[BlackClock "0:00:22"]
[Board "7"]

1. d4 {[%clk 0:03:00]}  Nf6 {[%clk 0:02:57]} 2. c4 {[%clk 0:03:01]}  Nc6 {[%clk 0:02:56]} 3. Nf3 {[%clk 0:03:01]}  e6 {[%clk 0:02:56]} 4. a3 {[%clk 0:03:00]}  d5 {[%clk 0:02:50]} 5. Nc3 {[%clk 0:03:00]}  Be7 {[%clk 0:02:47]} 6. Bf4 {[%clk 0:02:56]}  O-O {[%clk 0:02:45]} 7. e3 {[%clk 0:02:56]}  a6 {[%clk 0:02:41]} 8. b4 {[%clk 0:02:52]}  Bd6 {[%clk 0:02:41]} 9. Bg3 {[%clk 0:02:51]}  dxc4 {[%clk 0:02:40]} 10. Bxc4 {[%clk 0:02:51]}  Qe7 {[%clk 0:02:40]} 11. O-O {[%clk 0:02:47]}  e5 {[%clk 0:02:38]} 12. Nd5 {[%clk 0:02:45]}  Nxd5 {[%clk 0:02:37]} 13. Bxd5 {[%clk 0:02:46]}  exd4 {[%clk 0:02:27]} 14. Bxc6 {[%clk 0:02:45]}  bxc6 {[%clk 0:02:28]} 15. Nxd4 {[%clk 0:02:07]}  c5 {[%clk 0:02:27]} 16. Nc6 {[%clk 0:02:01]}  Qd7 {[%clk 0:02:25]} 17. Bxd6 {[%clk 0:01:28]}  cxd6 {[%clk 0:02:25]} 18. Na5 {[%clk 0:01:29]}  cxb4 {[%clk 0:02:21]} 19. axb4 {[%clk 0:01:30]}  Bb7 {[%clk 0:02:03]} 20. Nxb7 {[%clk 0:01:27]}  Qxb7 {[%clk 0:02:04]} 21. Qxd6 {[%clk 0:01:27]}  Rfd8 {[%clk 0:01:57]} 22. Qf4 {[%clk 0:01:24]}  Rab8 {[%clk 0:01:48]} 23. Rfd1 {[%clk 0:01:08]}  Rxd1+ {[%clk 0:01:38]} 24. Rxd1 {[%clk 0:01:09]}  h6 {[%clk 0:01:38]} 25. h3 {[%clk 0:01:07]}  Qb6 {[%clk 0:01:28]} 26. Rd6 {[%clk 0:01:05]}  Qb5 {[%clk 0:01:26]} 27. h4 {[%clk 0:00:55]}  a5 {[%clk 0:01:19]} 28. bxa5 {[%clk 0:00:53]}  Qxa5 {[%clk 0:01:20]} 29. Rd7 {[%clk 0:00:45]}  Rf8 {[%clk 0:01:17]} 30. Kh2 {[%clk 0:00:43]}  Qb5 {[%clk 0:01:16]} 31. Rc7 {[%clk 0:00:35]}  h5 {[%clk 0:01:15]} 32. Kg3 {[%clk 0:00:28]}  g6 {[%clk 0:01:10]} 33. Re7 {[%clk 0:00:23]}  Qc5 {[%clk 0:01:05]} 34. Re5 {[%clk 0:00:21]}  Qc6 {[%clk 0:01:01]} 35. Kh2 {[%clk 0:00:21]}  Kg7 {[%clk 0:01:01]} 36. Rg5 {[%clk 0:00:18]}  Qf6 {[%clk 0:00:59]} 37. Qg3 {[%clk 0:00:15]}  Kh7 {[%clk 0:00:57]} 38. f4 {[%clk 0:00:15]}  Re8 {[%clk 0:00:54]} 39. f5 {[%clk 0:00:14]}  Re4 {[%clk 0:00:46]} 40. Kh3 {[%clk 0:00:12]}  Kh6 {[%clk 0:00:44]} 41. Kh2 {[%clk 0:00:06]}  Qe5 {[%clk 0:00:37]} 42. Qxe5 {[%clk 0:00:04]}  Rxe5 {[%clk 0:00:36]} 43. fxg6 {[%clk 0:00:04]}  Rxg5 {[%clk 0:00:36]} 44. hxg5+ {[%clk 0:00:05]}  Kxg6 {[%clk 0:00:36]} 45. Kg3 {[%clk 0:00:04]}  Kxg5 {[%clk 0:00:36]} 46. e4 {[%clk 0:00:05]}  f6 {[%clk 0:00:27]} 47. Kh3 {[%clk 0:00:05]}  Kf4 {[%clk 0:00:20]} 48. Kh4 {[%clk 0:00:06]}  Kxe4 {[%clk 0:00:21]} 49. Kxh5 {[%clk 0:00:07]}  Kf5 {[%clk 0:00:21]} 50. g4+ {[%clk 0:00:06]}  Kf4 {[%clk 0:00:21]} 51. Kg6 {[%clk 0:00:07]}  Kxg4 {[%clk 0:00:22]} 52. Kxf6 {[%clk 0:00:07]} 1/2-1/2


[Site "https://www.chess.com"]